fUST/lending_fUST_20240801
["ID","MTS","AMOUNT","RATE_DAILY","PERIOD"]
[333813368,1722526245374,-435.018428,0.00015616,2]
[333813370,1722526245390,-500.0,0.00015616,2]
[333813371,1722526245401,-630.64,0.00015616,2]
[333813373,1722526245412,-500.0,0.00015616,2]
[333813374,1722526245425,-500.0,0.00015616,2]
[333813375,1722526245436,-500.0,0.00015616,2]
[333813376,1722526245447,-507.72,0.00015616,2]
[333813377,1722526245458,-958.75,0.00015616,2]
[333813378,1722526245469,-2970.46,0.00015616,2]
[333813379,1722526245483,-500.0,0.00015616,2]
[333813380,1722526245602,-500.0,0.00015616,2]
[333813381,1722526245623,-601.25,0.00015616,2]
[333813382,1722526245633,-500.0,0.00015616,2]
[333813383,1722526245642,-537.12,0.00015616,2]
[333813384,1722526245651,-500.0,0.00015616,2]
[333813385,1722526245661,-3014.99,0.00015616,2]
[333813386,1722526245670,-1097.58,0.00015616,2]
[333813387,1722526245679,-1026.8,0.00015616,2]
[333813388,1722526245689,-1001.77,0.00015616,2]
[333813389,1722526245698,-1834.64,0.00015616,2]
[333813390,1722526245708,-717.67,0.00015616,2]
[333813391,1722526245717,-560.01,0.00015616,2]
[333813392,1722526245729,-576.6,0.00015616,2]
[333813393,1722526245738,-853.2,0.00015616,2]
[333813394,1722526245747,-618.56,0.00015616,2]
[333813395,1722526245757,-500.0,0.00015616,2]
[333813396,1722526245766,-515.84,0.00015616,2]
[333813397,1722526245776,-500.0,0.00015616,2]
[333813398,1722526245785,-602.07,0.00015616,2]
[333813399,1722526245795,-500.0,0.00015616,2]
[333813400,1722526245805,-500.0,0.00015616,2]
[333813401,1722526245816,-959.6,0.00015616,2]
[333813402,1722526245825,-593.62,0.00015616,2]
[333813403,1722526245835,-813.83,0.00015616,2]
[333813404,1722526245845,-500.0,0.00015616,2]
[333813405,1722526245857,-527.79,0.00015616,2]
[333813406,1722526245868,-500.0,0.00015616,2]
[333813407,1722526245877,-745.56,0.00015616,2]
[333813408,1722526245888,-604.1,0.00015616,2]
[333813409,1722526245898,-500.0,0.00015616,2]
[333813410,1722526245908,-1389.84,0.00015616,2]
[333813411,1722526245919,-2092.69,0.00015616,2]
[333813412,1722526245930,-663.98,0.00015616,2]
[333813413,1722526245942,-47805.2093941,0.00015707,2]
[333813414,1722526245953,-24185.24733149,0.00015707,2]
[333813415,1722526245963,-151.0,0.00015707,2]
[333813416,1722526245973,-151.0,0.00015707,2]
[333813417,1722526245982,-186.708549,0.00015707,2]
[333813418,1722526245991,-186.708549,0.00015707,2]
[333813419,1722526246000,-151.0,0.00015707,2]
[333813420,1722526246009,-151.0,0.00015707,2]
[333813421,1722526246019,-280.761465,0.00015707,2]
[333813422,1722526246029,-151.0,0.00015707,2]
[333813423,1722526246040,-151.0,0.00015707,2]
[333813424,1722526246051,-151.0,0.00015707,2]
[333813425,1722526246062,-151.0,0.00015707,2]
[333813426,1722526246072,-151.0,0.00015707,2]
[333813429,1722526246082,-167.808466,0.00015707,2]
[333813432,1722526246091,-167.808466,0.00015707,2]
[333813434,1722526246101,-349.346713,0.00015707,2]
[333813436,1722526246110,-349.346713,0.00015707,2]
[333813439,1722526246121,-324.22717,0.00015707,2]
[333813443,1722526246131,-324.22717,0.00015707,2]
[333813447,1722526246141,-65036.09519592,0.00015707,2]
[333813450,1722526246150,-4016.12367644,0.00015708,2]
[333813453,1722526246159,-6198.93259454,0.00015708,2]
[333813456,1722526246169,-1638.72405448,0.00015708,2]
[333813507,1722526249100,-12245.23163663,0.00015708,2]
[333813508,1722526249111,-7869.33997108,0.00015708,3]
[333813509,1722526249121,-23013.11489099,0.00015708,2]
[333813510,1722526249153,-1145.438344,0.00015708,2]
[333813511,1722526255748,-76850.460375,0.00015708,2]
[333813512,1722526255809,-5928.38940805,0.00015708,2]
[333813513,1722526255824,-39320.15657472,0.00015708,2]
[333813514,1722526255834,-6091.17133562,0.00015708,2]
[333813515,1722526255843,-4776.88796455,0.00015708,2]
[333813516,1722526255853,-4077.0041103,0.00015708,2]
[333813517,1722526255863,-1700.97795375,0.00015708,2]
[333813518,1722526255872,-5563.61259105,0.00015708,2]
[333813519,1722526255881,-151.0,0.00015708,2]
[333813520,1722526255890,-1219.18947001,0.00015708,2]
[333813521,1722526255902,-6250.68343334,0.00015708,2]
[333813522,1722526255911,-3282.83876926,0.00015708,2]
[333813523,1722526255920,-151.0,0.00015708,2]
[333813524,1722526255929,-151.0,0.00015708,2]
[333813525,1722526255939,-4968.06928264,0.00015708,2]
[333813526,1722526255948,-7388.96695741,0.00015708,2]
[333813527,1722526255958,-155.126107,0.00015708,2]
[333813528,1722526255967,-33308.68867091,0.00015708,2]
[333813529,1722526255977,-1500.0,0.00015708,2]
[333813530,1722526255989,-151.0,0.00015708,2]
[333813531,1722526255998,-186.708549,0.00015708,2]
[333813532,1722526256007,-186.708549,0.00015708,2]
[333813533,1722526256016,-5509.45341855,0.00015708,2]
[333813534,1722526258694,-1370.02598742,0.00015708,2]
[333813535,1722526258704,-151.0,0.00015708,2]
[333813536,1722526258713,-1204.5111759,0.00015708,2]
[333813537,1722526258723,-151.0,0.00015708,2]
[333813538,1722526258733,-38908.3470877,0.00015708,2]
[333813539,1722526258850,-41722.20459336,0.00015708,2]
[333813540,1722526258860,-151.0,0.00015708,2]
[333813541,1722526258869,-151.0,0.00015708,2]
[333813542,1722526258878,-153.056947,0.00015708,2]
[333813543,1722526258889,-151.0,0.00015708,2]
[333813544,1722526258899,-435.018428,0.00015708,2]
[333813545,1722526258908,-435.018428,0.00015708,2]
[333813546,1722526258919,-435.018428,0.00015708,2]
[333813547,1722526258931,-435.018428,0.00015708,2]
[333813548,1722526258942,-151.0,0.00015708,2]
[333813549,1722526258953,-167.808466,0.00015708,2]
[333813550,1722526258964,-167.808466,0.00015708,2]
[333813551,1722526258974,-349.346713,0.00015708,2]
[333813552,1722526258986,-349.346713,0.00015708,2]
[333813553,1722526258996,-324.22717,0.00015708,2]
[333813554,1722526259007,-324.22717,0.00015708,2]
[333813555,1722526259017,-151.0,0.00015708,2]
[333813556,1722526259028,-151.0,0.00015708,2]
[333813557,1722526259037,-151.0,0.00015708,2]
[333813558,1722526259049,-489.151913,0.00015708,2]
[333813559,1722526259059,-489.151913,0.00015708,2]
[333813560,1722526259069,-151.0,0.00015708,2]
[333813561,1722526259078,-158.170833,0.00015708,2]
[333813562,1722526259087,-158.170833,0.00015708,2]
[333813563,1722526259097,-151.0,0.00015708,2]
[333813564,1722526259108,-151.0,0.00015708,2]
[333813565,1722526259118,-41903.0782162,0.00015709,2]
[333813566,1722526259129,-151.0,0.00015711,2]
[333813567,1722526259139,-151.0,0.00015711,2]
[333813568,1722526259150,-527.09552675,0.00015744,2]
[333813569,1722526259159,-261.15018643,0.00015744,2]
[333813570,1722526259169,-1410.0,0.00015745,2]
[333813571,1722526259179,-150.0,0.00015745,2]
[333813572,1722526259190,-186.708549,0.00015746,2]
[333813573,1722526259201,-186.708549,0.00015746,2]
[333813574,1722526259213,-150.0,0.0001587,2]
[333813575,1722526259224,-3361.186,0.0001587,2]
[333813576,1722526259236,-260.8,0.0001589,2]
[333813577,1722526259245,-646.69,0.0001589,2]
[333813578,1722526259255,-500.0,0.0001589,2]
[333813579,1722526259264,-500.0,0.0001589,2]
[333813580,1722526259275,-500.0,0.0001589,2]
[333813581,1722526259286,-500.0,0.0001589,2]
[333813582,1722526259296,-500.0,0.0001589,2]
[333813583,1722526259306,-555.92,0.0001589,2]
[333813584,1722526259315,-500.0,0.0001589,2]
[333813585,1722526259325,-576.59,0.0001589,2]
[333813586,1722526259334,-522.23,0.0001589,2]
[333813587,1722526259344,-500.0,0.0001589,2]
[333813588,1722526259354,-541.8,0.0001589,2]
[333813589,1722526259363,-923.56,0.0001589,2]
[333813590,1722526259444,-151.0,0.0001589,2]
[333813591,1722526259454,-801.84,0.0001589,2]
[333813592,1722526259464,-500.0,0.0001589,2]
[333813593,1722526259474,-500.0,0.0001589,2]
[333813594,1722526259486,-500.0,0.0001589,2]
[333813595,1722526259497,-500.0,0.0001589,2]
[333813596,1722526259506,-500.0,0.0001589,2]
[333813597,1722526259516,-151.0,0.0001589,2]
[333813598,1722526259526,-716.89,0.0001589,2]
[333813599,1722526259536,-738.18,0.0001589,2]
[333813600,1722526259545,-500.0,0.0001589,2]
[333813601,1722526259555,-534.35,0.0001589,2]
[333813602,1722526259564,-500.0,0.0001589,2]
[333813603,1722526259574,-306.1540175,0.0001589,2]
[333813604,1722526259583,-705.26,0.0001589,2]
[333813605,1722526259593,-151.0,0.0001589,2]
[333813606,1722526259602,-1051.75,0.0001589,2]
[333813607,1722526259612,-500.0,0.0001589,2]
[333813608,1722526259622,-500.0,0.0001589,2]
[333813609,1722526259631,-500.0,0.0001589,2]
[333813610,1722526259641,-500.0,0.0001589,2]
[333813611,1722526259650,-1053.29,0.0001589,2]
[333813612,1722526259660,-500.0,0.0001589,2]
[333813613,1722526259669,-500.0,0.0001589,2]
[333813614,1722526259679,-151.0,0.0001589,2]
[333813615,1722526259689,-151.0,0.0001589,2]
[333813616,1722526259699,-167.808466,0.0001589,2]
[333813617,1722526259708,-167.808466,0.0001589,2]
[333813618,1722526259717,-474.77130571,0.0001589,2]
[333813619,1722526259727,-630.64,0.0001589,2]
[333813620,1722526259739,-500.0,0.0001589,2]
[333813621,1722526259749,-500.0,0.0001589,2]
[333813622,1722526259758,-500.0,0.0001589,2]
[333813623,1722526259768,-507.72,0.0001589,2]
[333813624,1722526259778,-958.75,0.0001589,2]
[333813625,1722526259788,-2970.46,0.0001589,2]
[333813626,1722526259798,-500.0,0.0001589,2]
[333813627,1722526259807,-500.0,0.0001589,2]
[333813628,1722526259817,-601.25,0.0001589,2]
[333813629,1722526259826,-500.0,0.0001589,2]
[333813630,1722526259835,-537.12,0.0001589,2]
[333813631,1722526259845,-500.0,0.0001589,2]
[333813632,1722526259854,-3014.99,0.0001589,2]
[333813633,1722526259864,-1097.58,0.0001589,2]
[333813634,1722526259873,-1026.8,0.0001589,2]
[333813635,1722526259883,-1001.77,0.0001589,2]
[333813636,1722526259893,-1834.64,0.0001589,2]
[333813637,1722526259902,-717.67,0.0001589,2]
[333813638,1722526259912,-560.01,0.0001589,2]
[333813639,1722526259921,-576.6,0.0001589,2]
[333813640,1722526259931,-853.2,0.0001589,2]
[333813641,1722526259940,-618.56,0.0001589,2]
[333813642,1722526259950,-500.0,0.0001589,2]
[333813643,1722526259959,-515.84,0.0001589,2]
[333813644,1722526259969,-500.0,0.0001589,2]
[333813645,1722526259979,-602.07,0.0001589,2]
[333813646,1722526259994,-500.0,0.0001589,2]
[333813647,1722526260003,-959.6,0.0001589,2]
[333813648,1722526260013,-500.0,0.0001589,2]
[333813649,1722526260024,-593.62,0.0001589,2]
[333813650,1722526260034,-813.83,0.0001589,2]
[333813651,1722526260044,-500.0,0.0001589,2]
[333813652,1722526260054,-527.79,0.0001589,2]
[333813653,1722526260064,-500.0,0.0001589,2]
[333813654,1722526260074,-745.56,0.0001589,2]
[333813655,1722526260084,-604.1,0.0001589,2]
[333813656,1722526260094,-500.0,0.0001589,2]
[333813657,1722526260103,-1389.84,0.0001589,2]
[333813658,1722526260113,-2092.69,0.0001589,2]
[333813659,1722526260122,-663.98,0.0001589,2]
[333813660,1722526260131,-4485.52915841,0.0001592,2]
[333813661,1722526260140,-155.126107,0.00015953,2]
[333813662,1722526260150,-1426.38944905,0.00015954,2]
[333813663,1722526260159,-824.43661996,0.00016,2]
[333813664,1722526260169,-3000.0,0.00016,2]
[333813665,1722526260178,-3000.0,0.0001601,2]
[333813666,1722526260188,-3000.0,0.0001602,2]
[333813667,1722526260198,-3000.0,0.0001603,2]
[333813668,1722526260208,-151.0,0.00016038,2]
[333813669,1722526260218,-151.0,0.00016038,2]
[333813670,1722526260228,-3000.0,0.0001604,2]
[333813671,1722526260243,-3000.0,0.0001605,2]
[333813672,1722526260252,-3000.0,0.0001606,2]
[333813673,1722526260262,-3000.0,0.0001607,2]
[333813674,1722526260272,-3000.0,0.0001608,2]
[333813675,1722526260282,-151.0,0.0001609,2]
[333813676,1722526260292,-3000.0,0.0001609,2]
[333813677,1722526260301,-435.018428,0.0001609,2]
[333813678,1722526260311,-435.018428,0.0001609,2]
[333813679,1722526260320,-3000.0,0.000161,2]
[333813680,1722526260330,-3000.0,0.0001611,2]
[333813681,1722526260339,-349.346713,0.0001611,2]
[333813682,1722526260349,-349.346713,0.0001611,2]
[333813683,1722526260358,-324.22717,0.0001611,2]
[333813684,1722526260372,-324.22717,0.0001611,2]
[333813685,1722526260382,-3000.0,0.0001612,2]
[333813686,1722526260391,-3000.0,0.0001613,2]
[333813687,1722526260401,-2000.0,0.00016138,2]
[333813688,1722526260410,-3000.0,0.0001614,2]
[333813689,1722526260421,-2000.0,0.00016146,2]
[333813690,1722526260430,-3000.0,0.0001615,2]
[333813691,1722526260440,-2000.0,0.00016155,2]
[333813692,1722526260450,-1011.01910863,0.0001616,2]
[333813693,1722526260714,-500.0,0.00013698,2]
[333813694,1722526260723,-2453.44939621,0.0001469,2]
[333813695,1722526260738,-476.7687584,0.0001469,2]
[333813696,1722526260749,-1473.00074673,0.0001469,2]
[333813697,1722526260761,-6317.71842697,0.0001469,2]
[333813698,1722526261960,-11790.220073,0.0001469,2]
[333813699,1722526261971,-77488.84259869,0.0001469,2]
[333813700,1722526261982,-506.0,0.00015745,2]
[333813701,1722526261997,-1988.98089137,0.0001616,2]
[333813702,1722526262007,-2000.0,0.00016164,2]
[333813703,1722526262016,-646.69,0.00016164,2]
[333813704,1722526262026,-500.0,0.00016164,2]
[333813705,1722526262035,-500.0,0.00016164,2]
[333813706,1722526262045,-500.0,0.00016164,2]
[333813707,1722526262054,-500.0,0.00016164,2]
[333813708,1722526262064,-500.0,0.00016164,2]
[333813709,1722526262074,-555.92,0.00016164,2]
[333813710,1722526262083,-186.708549,0.00016164,2]
[333813711,1722526262093,-576.59,0.00016164,2]
[333813712,1722526262102,-186.708549,0.00016164,2]
[333813713,1722526262112,-522.23,0.00016164,2]
[333813714,1722526262123,-500.0,0.00016164,2]
[333813715,1722526262132,-541.8,0.00016164,2]
[333813716,1722526262141,-923.56,0.00016164,2]
[333813717,1722526262151,-801.84,0.00016164,2]
[333813718,1722526262160,-500.0,0.00016164,2]
[333813719,1722526262170,-500.0,0.00016164,2]
[333813720,1722526262180,-178.92395362,0.00016164,2]
[333813721,1722526262189,-500.0,0.00016164,2]
[333813722,1722526262199,-500.0,0.00016164,2]
[333813723,1722526262208,-716.89,0.00016164,2]
[333813724,1722526262218,-738.18,0.00016164,2]
[333813725,1722526262228,-500.0,0.00016164,2]
[333813726,1722526262243,-534.35,0.00016164,2]
[333813727,1722526262253,-500.0,0.00016164,2]
[333813728,1722526262263,-705.26,0.00016164,2]
[333813729,1722526262274,-1051.75,0.00016164,2]
[333813730,1722526262283,-500.0,0.00016164,2]
[333813731,1722526262293,-500.0,0.00016164,2]
[333813732,1722526262302,-500.0,0.00016164,2]
[333813733,1722526262312,-500.0,0.00016164,2]
[333813734,1722526262321,-1053.29,0.00016164,2]
[333813735,1722526262331,-500.0,0.00016164,2]
[333813736,1722526262340,-500.0,0.00016164,2]
[333813737,1722526262349,-630.64,0.00016164,2]
[333813738,1722526262359,-500.0,0.00016164,2]
[333813739,1722526262369,-500.0,0.00016164,2]
[333813740,1722526262381,-500.0,0.00016164,2]
[333813741,1722526262393,-507.72,0.00016164,2]
[333813742,1722526262412,-958.75,0.00016164,2]
[333813743,1722526262427,-2970.46,0.00016164,2]
[333813744,1722526262444,-500.0,0.00016164,2]
[333813745,1722526262464,-500.0,0.00016164,2]
[333813746,1722526262483,-601.25,0.00016164,2]
[333813747,1722526262502,-500.0,0.00016164,2]
[333813748,1722526262519,-537.12,0.00016164,2]
[333813749,1722526262533,-500.0,0.00016164,2]
[333813750,1722526262549,-3014.99,0.00016164,2]
[333813751,1722526262569,-1097.58,0.00016164,2]
[333813752,1722526262588,-1026.8,0.00016164,2]
[333813753,1722526262600,-1001.77,0.00016164,2]
[333813754,1722526262617,-1834.64,0.00016164,2]
[333813755,1722526262632,-717.67,0.00016164,2]
[333813756,1722526262648,-560.01,0.00016164,2]
[333813757,1722526262662,-576.6,0.00016164,2]
[333813758,1722526262676,-853.2,0.00016164,2]
[333813759,1722526262691,-618.56,0.00016164,2]
[333813760,1722526262705,-500.0,0.00016164,2]
[333813761,1722526262719,-515.84,0.00016164,2]
[333813762,1722526262733,-500.0,0.00016164,2]
[333813763,1722526262749,-602.07,0.00016164,2]
[333813764,1722526262765,-500.0,0.00016164,2]
[333813765,1722526262778,-959.6,0.00016164,2]
[333813766,1722526262793,-500.0,0.00016164,2]
[333813767,1722526262808,-593.62,0.00016164,2]
[333813768,1722526262823,-813.83,0.00016164,2]
[333813769,1722526262842,-500.0,0.00016164,2]
[333813770,1722526262853,-527.79,0.00016164,2]
[333813771,1722526262863,-500.0,0.00016164,2]
[333813772,1722526262873,-745.56,0.00016164,2]
[333813773,1722526262883,-604.1,0.00016164,2]
[333813774,1722526262894,-500.0,0.00016164,2]
[333813775,1722526262904,-1389.84,0.00016164,2]
[333813776,1722526262914,-2092.69,0.00016164,2]
[333813777,1722526262925,-663.98,0.00016164,2]
[333813778,1722526262935,-3000.0,0.0001617,2]
[333813779,1722526262946,-3000.0,0.0001618,2]
[333813780,1722526262956,-3000.0,0.0001619,2]
[333813781,1722526262968,-3000.0,0.000162,2]
[333813782,1722526262978,-3000.0,0.0001621,2]
[333813783,1722526262991,-3000.0,0.0001622,2]
[333813784,1722526263002,-3000.0,0.0001623,2]
[333813785,1722526263012,-3000.0,0.0001624,2]
[333813786,1722526263022,-3000.0,0.0001625,2]
[333813787,1722526263033,-3000.0,0.0001626,2]
[333813788,1722526263043,-3000.0,0.0001627,2]
[333813789,1722526263052,-158.170833,0.0001627,2]
[333813790,1722526263223,-158.170833,0.0001627,2]
[333813791,1722526263239,-3000.0,0.0001628,2]
[333813792,1722526263249,-3000.0,0.0001629,2]
[333813793,1722526263259,-3000.0,0.000163,2]
[333813794,1722526263270,-3000.0,0.0001631,2]
[333813795,1722526263279,-3000.0,0.0001632,2]
[333813796,1722526263290,-3000.0,0.0001633,2]
[333813797,1722526263300,-151.0,0.0001634,2]
[333813798,1722526263310,-151.0,0.0001634,2]
[333813799,1722526263321,-3000.0,0.0001634,2]
[333813800,1722526263332,-3000.0,0.0001635,2]
[333813801,1722526263342,-3000.0,0.0001636,2]
[333813802,1722526263352,-151.0,0.0001637,2]
[333813803,1722526263362,-151.0,0.0001637,2]
[333813804,1722526263376,-3000.0,0.0001637,2]
[333813805,1722526263387,-3000.0,0.0001638,2]
[333813806,1722526263398,-3000.0,0.0001639,2]
[333813807,1722526263411,-3000.0,0.000164,2]
[333813808,1722526263423,-151.0,0.000164,2]
[333813809,1722526263434,-167.808466,0.000164,2]
[333813810,1722526263444,-167.808466,0.000164,2]
[333813811,1722526263454,-3000.0,0.0001641,2]
[333813812,1722526263467,-3000.0,0.0001642,2]
[333813813,1722526263478,-3000.0,0.0001643,2]
[333813814,1722526263495,-393.94545662,0.00016437,2]
[333813815,1722526263505,-400.0,0.00016437,2]
[333813816,1722526263516,-646.69,0.00016438,2]
[333813817,1722526263526,-500.0,0.00016438,2]
[333813818,1722526263535,-208.51,0.00016438,2]
[333813819,1722526263545,-208.51,0.00016438,2]
[333813820,1722526263554,-208.51,0.00016438,2]
[333813821,1722526263564,-208.51,0.00016438,2]
[333813822,1722526263574,-208.51,0.00016438,2]
[333813823,1722526263585,-208.51,0.00016438,2]
[333813824,1722526263595,-208.51,0.00016438,2]
[333813825,1722526263604,-208.51,0.00016438,2]
[333813826,1722526263614,-208.51,0.00016438,2]
[333813827,1722526263624,-208.51,0.00016438,2]
[333813828,1722526263634,-208.51,0.00016438,2]
[333813829,1722526263643,-155.126107,0.00016438,2]
[333813830,1722526263652,-500.0,0.00016438,2]
[333813831,1722526263662,-581.22471447,0.00016438,2]
[333813832,1722526263672,-500.0,0.00016438,2]
[333813833,1722526263682,-500.0,0.00016438,2]
[333813834,1722526263692,-555.92,0.00016438,2]
[333813835,1722526263702,-576.59,0.00016438,2]
[333813836,1722526263712,-522.23,0.00016438,2]
[333813837,1722526263722,-500.0,0.00016438,2]
[333813838,1722526263732,-923.56,0.00016438,2]
[333813839,1722526263747,-541.8,0.00016438,2]
[333813840,1722526263757,-801.84,0.00016438,2]
[333813841,1722526263767,-500.0,0.00016438,2]
[333813842,1722526263776,-500.0,0.00016438,2]
[333813843,1722526263785,-151.0,0.00016438,2]
[333813844,1722526263794,-257.31,0.00016438,2]
[333813845,1722526263803,-500.0,0.00016438,2]
[333813846,1722526263813,-716.89,0.00016438,2]
[333813847,1722526263823,-738.18,0.00016438,2]
[333813848,1722526263832,-649.62658681,0.00016438,2]
[333813849,1722526263842,-534.35,0.00016438,2]
[333813850,1722526263852,-206.97460583,0.00016438,2]
[333813851,1722526263861,-705.26,0.00016438,2]
[333813852,1722526263871,-1051.75,0.00016438,2]
[333813853,1722526263881,-500.0,0.00016438,2]
[333813854,1722526263891,-500.0,0.00016438,2]
[333813855,1722526263901,-384.04905699,0.00016438,2]
[333813856,1722526263911,-500.0,0.00016438,2]
[333813857,1722526263922,-1053.29,0.00016438,2]
[333813858,1722526263931,-500.0,0.00016438,2]
[333813859,1722526263941,-500.0,0.00016438,2]
[333813860,1722526263951,-333.0,0.00016438,2]
[333813861,1722526263960,-435.018428,0.00016438,2]
[333813862,1722526263970,-435.018428,0.00016438,2]
[333813863,1722526263980,-630.64,0.00016438,2]
[333813864,1722526263994,-500.0,0.00016438,2]
[333813865,1722526264004,-500.0,0.00016438,2]
[333813866,1722526264013,-500.0,0.00016438,2]
[333813867,1722526264023,-507.72,0.00016438,2]
[333813868,1722526264032,-958.75,0.00016438,2]
[333813869,1722526264041,-2970.46,0.00016438,2]
[333813870,1722526264051,-500.0,0.00016438,2]
[333813871,1722526264059,-500.0,0.00016438,2]
[333813872,1722526264069,-601.25,0.00016438,2]
[333813873,1722526264078,-500.0,0.00016438,2]
[333813874,1722526264088,-537.12,0.00016438,2]
[333813875,1722526264097,-500.0,0.00016438,2]
[333813876,1722526264107,-3014.99,0.00016438,2]
[333813877,1722526264117,-1097.58,0.00016438,2]
[333813878,1722526264127,-1026.8,0.00016438,2]
[333813879,1722526264137,-1001.77,0.00016438,2]
[333813880,1722526264146,-1834.64,0.00016438,2]
[333813881,1722526264156,-717.67,0.00016438,2]
[333813882,1722526264165,-560.01,0.00016438,2]
[333813883,1722526264175,-576.6,0.00016438,2]
[333813884,1722526264185,-853.2,0.00016438,2]
[333813885,1722526264196,-618.56,0.00016438,2]
[333813886,1722526264206,-500.0,0.00016438,2]
[333813887,1722526264216,-151.0,0.00016438,2]
[333813888,1722526264225,-515.84,0.00016438,2]
[333813889,1722526264236,-500.0,0.00016438,2]
[333813890,1722526264250,-602.07,0.00016438,2]
[333813891,1722526264260,-500.0,0.00016438,2]
[333813892,1722526264270,-959.6,0.00016438,2]
[333813893,1722526264279,-500.0,0.00016438,2]
[333813894,1722526264290,-151.0,0.00016438,2]
[333813895,1722526264299,-593.62,0.00016438,2]
[333813896,1722526264309,-151.0,0.00016438,2]
[333813897,1722526264318,-489.151913,0.00016438,2]
[333813898,1722526264328,-813.83,0.00016438,2]
[333813899,1722526264338,-500.0,0.00016438,2]
[333813900,1722526264347,-489.151913,0.00016438,2]
[333813901,1722526264357,-500.0,0.00016438,2]
[333813902,1722526264367,-527.79,0.00016438,2]
[333813903,1722526264376,-745.56,0.00016438,2]
[333813904,1722526264390,-151.0,0.00016438,2]
[333813905,1722526264400,-604.1,0.00016438,2]
[333813906,1722526264411,-500.0,0.00016438,2]
[333813907,1722526264422,-1389.84,0.00016438,2]
[333813908,1722526264432,-2092.69,0.00016438,2]
[333813909,1722526264441,-663.98,0.00016438,2]
[333813910,1722526264451,-3000.0,0.0001644,2]
[333813911,1722526264462,-3000.0,0.0001645,2]
[333813912,1722526264471,-3000.0,0.0001646,2]
[333813913,1722526264481,-3000.0,0.0001647,2]
[333813914,1722526264497,-349.346713,0.0001647,2]
[333813915,1722526264507,-349.346713,0.0001647,2]
[333813916,1722526264516,-324.22717,0.0001647,2]
[333813917,1722526264526,-324.22717,0.0001647,2]
[333813918,1722526264536,-3000.0,0.0001648,2]
[333813919,1722526264545,-5944.488013,0.0001649,2]
[333813920,1722526264555,-646.69,0.00016712,2]
[333813921,1722526264564,-500.0,0.00016712,2]
[333813922,1722526264573,-208.51,0.00016712,2]
[333813923,1722526264582,-500.0,0.00016712,2]
[333813924,1722526264591,-500.0,0.00016712,2]
[333813925,1722526264601,-500.0,0.00016712,2]
[333813926,1722526264611,-555.92,0.00016712,2]
[333813927,1722526264621,-186.708549,0.00016712,2]
[333813928,1722526264632,-576.59,0.00016712,2]
[333813929,1722526264641,-186.708549,0.00016712,2]
[333813930,1722526264651,-522.23,0.00016712,2]
[333813931,1722526264660,-500.0,0.00016712,2]
[333813932,1722526264670,-923.56,0.00016712,2]
[333813933,1722526264680,-541.8,0.00016712,2]
[333813934,1722526264690,-801.84,0.00016712,2]
[333813935,1722526264700,-500.0,0.00016712,2]
[333813936,1722526264710,-500.0,0.00016712,2]
[333813937,1722526264720,-500.0,0.00016712,2]
[333813938,1722526264731,-716.89,0.00016712,2]
[333813939,1722526264748,-738.18,0.00016712,2]